Cogmind - Beta 13 @@@ ROGUE MODE // 2024.05.23 @ 16:53:10 Player: Sunsh1n3 Result: Destroyed by G-47 Trooper with Particle Gun Performance ------------- Evolutions (2) 1000 Regions Visited (5) 1000 Robots Destroyed (32) 160 Value Destroyed (653) 653 Prototype IDs (9) 180 Alien Tech Used (0) 0 Bonus (339) 339 TOTAL SCORE: 3332 Bonus ------- Follower Combat Kills 39 Aligned with FarCom 300 Cogmind --------- Core Integrity 0/550 Matter 57/300 Energy 100/100 System Corruption 0% Temperature Cool (9) Movement Core (300) Ox5 Location -8/Materials Parts ------- > --- POWER (1) -------- (None) > --- PROPULSION (4) --- (None) > --- UTILITY (4) ------ Disposable Heat Sink Medium Storage Unit 0b10 Alert Chip > --- WEAPON (2) ------- Improved Grenade Launcher > --- INVENTORY (10) --- Cesium-ion Thruster Improved Heat Sink Disposable Heat Sink Superbattery (1500) Experimental Sensor Array Seismic Detector Cloak of Protection Peak State ------------ > --- POWER ------------ Nuclear Core > --- PROPULSION ------- Aluminum Leg Aluminum Leg > --- UTILITY ---------- Medium Storage Unit Transport Network Coupler 0b10 Alert Chip Cloak of Protection > --- WEAPON ----------- Heavy Particle Gun Precision Beam Rifle > --- INVENTORY -------- Ion Engine Light Nuclear Core Small Storage Unit Superbattery Experimental Sensor Array Seismic Detector Assault Rifle Light Assault Rifle Grenade Launcher Rocket Launcher [Rating: 32] Favorites ----------- Power Ion Engine Engine Ion Engine Power Core Nuclear Core Propulsion Light Treads Treads Light Treads Leg Aluminum Leg Flight Unit Improved VTOL Module Utility Transport Network Coupler Device Cloak of Protection Storage Small Storage Unit Processor Transport Network Coupler Protection Improved Light Armor Plating Weapon Light Assault Rifle Energy Gun Precision Beam Rifle Ballistic Gun Light Assault Rifle Launcher Rocket Launcher Special Melee Weapon Datajack Build | -11 -10 -10 -10 -9 -8 ------- Run | Yrd Mat Min Exi Min Mat Slots Evolved 4 | . . . . . 4 Power . | . . . . . . Propulsion 2 | . . . . . 2 Utility 2 | . . . . . 2 Weapon . | . . . . . . Parts Attached 45 | 6 9 . 2 6 22 Power 3 | 1 . . . 1 1 Engine 2 | 1 . . . 1 . Core 1 | . . . . . 1 Reactor . | . . . . . . Propulsion 9 | 2 4 . . 2 1 Treads 2 | . 2 . . . . Leg 6 | 2 2 . . 2 . Wheel . | . . . . . . Hover . | . . . . . . Flight 1 | . . . . . 1 Utility 17 | 1 1 . 2 1 12 Device 7 | . . . . . 7 Storage 6 | 1 . . 2 1 2 Processor 2 | . 1 . . . 1 Hackware . | . . . . . . Protection 2 | . . . . . 2 Artifact . | . . . . . . Weapon 16 | 2 4 . . 2 8 Energy Gun 4 | . . . . . 4 Energy Cannon . | . . . . . . Ballistic Gun 6 | 2 3 . . 1 . Ballistic Cannon . | . . . . . . Launcher 5 | . . . . 1 4 Special Weapon . | . . . . . . Impact Weapon . | . . . . . . Slashing Weapon . | . . . . . . Piercing Weapon . | . . . . . . Special Melee Weapon 1 | . 1 . . . . Unidentified Prototypes 7 | . . . 1 . 6 Parts Lost 9 | . . . . . 9 Power 1 | . . . . . 1 Propulsion 2 | . . . . . 2 Utility 2 | . . . . . 2 Weapon 4 | . . . . . 4 Highest Loss Streak 5 | . . . . . 5 To Critical Strikes . | . . . . . . Average Slot Usage (%) 92 | . 94 100 100 100 72 Engine 11 | . 14 14 14 14 1 Core 1 | . . . . . 6 Treads 18 | . 2 28 28 22 . Leg 5 | . 24 . . 5 12 Device 2 | . . . . . 8 Storage 12 | . 14 14 14 14 9 Processor 14 | . 9 14 14 14 16 Energy Gun 2 | . . . . . 9 Ballistic Gun 22 | . 27 28 28 25 3 Launcher 1 | . . . . 2 3 Naked Turns . | . . . . . . Heaviest Build 31 | 13 13 13 13 13 31 Greatest Support 40 | 20 40 40 40 40 20 Greatest Overweight (x) 8 | . 1 . . 1 8 Average Overweight (x) . | . . . . . 1 Largest Inventory Capacity 10 | 8 8 8 8 8 10 Average Capacity 8 | 7 8 8 7 8 9 Most Carried 10 | 7 8 8 8 8 10 Average Carried 7 | 4 6 7 7 7 8 Final Capacity 10 | 8 8 8 8 8 10 Final Carried 8 | 4 8 8 8 8 7 Class Distribution -------------------- 80% | Mutant 15% | Scavenger-Skirmisher 4% | Skirmisher Dominant Class ---------------- Mutant | -10/Materials Mutant | -10/Mines Mutant | -10/Exiles Mutant | -9/Mines Scavenger-Skirmisher | -8/Materials Resources | -11 -10 -10 -10 -9 -8 ----------- Run | Yrd Mat Min Exi Min Mat Matter Collected 737 | 226 148 52 . 35 276 Remotely . | . . . . . . Salvage Created 842 | . 260 . . 160 422 Parts 54 | . 17 . . 18 19 Haulers Intercepted 3 | . 2 . . . 1 Recyclers Shooed 1 | . . . . 1 . Parts Field Recycled . | . . . . . . Retrieved Matter . | . . . . . . Parts Self-Destructed . | . . . . . . Prevented . | . . . . . . Kills | -11 -10 -10 -10 -9 -8 ------- Run | Yrd Mat Min Exi Min Mat Combat Hostiles Destroyed 20 | . 8 . . 5 7 Guns 13 | . 8 . . 1 4 AOE 7 | . . . . 4 3 Classes Destroyed 8 | . 3 . . 3 2 Worker 3 | . . . . 1 2 Builder 2 | . . . . 1 1 Hauler 3 | . 2 . . . 1 Recycler 2 | . . . . 1 1 Mechanic 2 | . . . . . 2 Swarmer 9 | . 6 . . 3 . Grunt 10 | . 2 . . 2 6 Sentry 1 | . . . . . 1 Best Kill Streak 8 | . 8 . . 8 7 Combat Bots Only 8 | . 8 . . 5 3 Max Kills in Single Turn 5 | . 1 . . 5 4 Gunslinging . | . . . . . . Exploded 2 | . . . . 2 2 Melee . | . . . . . . Uniques/NPCs Destroyed . | . . . . . . Combat | -11 -10 -10 -10 -9 -8 -------- Run | Yrd Mat Min Exi Min Mat Hostile Shots Fired 136 | . 43 6 . 16 71 Missed 28 | . 10 . . 2 16 Damage Taken 2267 | . 316 280 . 140 1531 Core 668 | . 60 46 . . 562 Absorbed by Shields . | . . . . . . Core Remaining (%) 78 | 100 . . . 57 . Volleys Fired 68 | . 22 . . 5 41 Largest 2 | . 2 . . 2 2 Hottest 122 | . 40 . . 50 122 Shots Fired 120 | . 44 . . 9 67 Gun 102 | . 44 . . 6 52 Cannon . | . . . . . . Launcher 18 | . . . . 3 15 Special . | . . . . . . Kinetic 59 | . 44 . . 6 9 Thermal 43 | . . . . . 43 Explosive 18 | . . . . 3 15 Electromagnetic . | . . . . . . Robot Hit Streak 16 | . 5 . . 5 16 Robot Miss Streak 3 | . 3 . . . 2 Penetration Max . | . . . . . . Secondary Targets 4 | . 4 . . . . Max Gunslinging Chain 1 | . 1 . . . . Shots Hit Robots 82 | . 27 . . 4 51 Core Hits 53 | . 13 . . 9 31 Critical Kills 1 | . . . . . 1 Critical Parts Destroyed . | . . . . . . Critical Strikes 3 | . . . . . 3 Burn 2 | . . . . . 2 Destroy 1 | . . . . . 1 Melee Attacks 1 | . 1 . . . . Impact . | . . . . . . Slashing . | . . . . . . Piercing . | . . . . . . Sneak Attacks 1 | . 1 . . . . Combat Hostiles . | . . . . . . Follow-up Attacks . | . . . . . . Damage Inflicted 2435 | . 266 . . 376 1793 Guns 950 | . 266 . . 30 654 Cannons . | . . . . . . Explosions 1485 | . . . . 346 1139 Melee . | . . . . . . Ramming . | . . . . . . Kinetic 352 | . 266 . . 30 56 Thermal 598 | . . . . . 598 Explosive 1485 | . . . . 346 1139 Electromagnetic . | . . . . . . Impact . | . . . . . . Slashing . | . . . . . . Piercing . | . . . . . . Highest Corruption 2 | . 2 2 2 2 . Average Corruption 1 | . 1 2 2 2 . Corruption Purged . | . . . . . . Corruption Blocked . | . . . . . . Effects 21 | . 3 8 10 . . Message Errors 4 | . 1 2 1 . . Matter Fused 8 | . . 4 4 . . Heat Flow Errors 2 | . 1 . 1 . . Energy Discharges 3 | . . . 3 . . Parts Rejected 1 | . 1 . . . . Data Loss (minor) 3 | . . 2 1 . . Overload Shots . | . . . . . . Overflow Damage 29 | . . . . 22 7 Projectiles . | . . . . . . Explosions 29 | . . . . 22 7 Melee . | . . . . . . Knockbacks . | . . . . . . Impact . | . . . . . . Kinetic . | . . . . . . Secondary . | . . . . . . Self-Inflicted Damage 97 | . . . . 22 75 Shots 3 | . . . . 1 2 Rammed . | . . . . . . Targets Rammed . | . . . . . . Kicked . | . . . . . . Crushed . | . . . . . . Highest Temperature 454 | . 109 . 275 16 454 Average Temperature 108 | . 22 . 142 9 131 Received Heat Transfer 438 | . 90 . . 15 333 Effects 5 | . . . . . 5 Shutdowns 2 | . . . . . 2 Energy Bleed 1 | . . . . . 1 Interference 2 | . . . . . 2 Siege Activations . | . . . . . . Robots Corrupted . | . . . . . . Combat Hostiles . | . . . . . . Parts Fried . | . . . . . . Impact Corruptions . | . . . . . . Robots Melted . | . . . . . . Combat Hostiles . | . . . . . . Parts Melted 3 | . . . . . 3 Heat Transferred 1443 | . . . . . 1443 Parts Sabotaged . | . . . . . . Parts Stolen . | . . . . . . Parts Stripped . | . . . . . . Power Chain Reactions . | . . . . . . Alert | -11 -10 -10 -10 -9 -8 ------- Run | Yrd Mat Min Exi Min Mat Peak Influence 270 | . 239 127 . 157 270 Initial 93 | . . 93 . . 61 Average 100 | . 112 59 . 133 151 Maximum Alert Level 1 | . 1 . . . 1 Low Security (%) 85 | 100 57 100 . 100 76 Level 1 14 | . 42 . . . 23 Level 2 . | . . . . . . Level 3 . | . . . . . . Level 4 . | . . . . . . Level 5 . | . . . . . . High Security . | . . . . . . Max Security . | . . . . . . Squads Dispatched 4 | . 1 . . . 3 Investigation . | . . . . . . Extermination . | . . . . . . Reinforcement 4 | . 1 . . . 3 Assault . | . . . . . . Garrison . | . . . . . . Intercept . | . . . . . . Searches Triggered . | . . . . . . Construction Impeded 1 | . . . . . 1 Haulers Reinforced . | . . . . . . Active Scanning Responses . | . . . . . . Cargo Convoy Interrupts . | . . . . . . Stealth | -11 -10 -10 -10 -9 -8 --------- Run | Yrd Mat Min Exi Min Mat Distress Signals 3 | . 1 . . . 2 Communications Jammed . | . . . . . . Distress Signals . | . . . . . . Times Spotted 37 | . 13 2 . 5 17 Peak Tracking Total 8 | . 8 2 . 5 4 Tactical Retreats 1 | . 1 . . . . Traps | -11 -10 -10 -10 -9 -8 ------- Run | Yrd Mat Min Exi Min Mat Traps Triggered 2 | . 2 . . . . Indirectly . | . . . . . . Trap Hack Attempts . | . . . . . . Triggered . | . . . . . . Disarmed . | . . . . . . Reprogrammed . | . . . . . . Reused . | . . . . . . Traps Extracted . | . . . . . . Installed . | . . . . . . Triggered . | . . . . . . Machines | -11 -10 -10 -10 -9 -8 ---------- Run | Yrd Mat Min Exi Min Mat Machines Disabled 3 | . . . . . 3 Max in Single Turn 1 | . . . . . 1 Machines Repaired . | . . . . . . Machines Dismantled . | . . . . . . Machines Sabotaged . | . . . . . . Overloaded Fab Kills . | . . . . . . Hacking | -11 -10 -10 -10 -9 -8 --------- Run | Yrd Mat Min Exi Min Mat Machines Accessed 2 | . 1 . . . 1 Terminals 2 | . 1 . . . 1 Fabricators . | . . . . . . Repair Stations . | . . . . . . Recycling Units . | . . . . . . Scanalyzers . | . . . . . . Garrison Access . | . . . . . . Total Hacks 7 | . 4 . . . 3 Successful 5 | . 3 . . . 2 Failed 2 | . 1 . . . 1 Catastrophic . | . . . . . . Database Lockouts . | . . . . . . Manual 1 | . . . 1 . . Terminals 7 | . 4 . . . 3 Fabricators . | . . . . . . Repair Stations . | . . . . . . Recycling Units . | . . . . . . Scanalyzers . | . . . . . . Garrison Access . | . . . . . . Terminal Hacks 5 | . 3 . . . 2 Record 1 | . . . . . 1 Prototype ID Bank 1 | . 1 . . . . Branch Access Points 1 | . . . . . 1 Transport Status 1 | . 1 . . . . Hauler Manifests 1 | . 1 . . . . Fabricator Hacks . | . . . . . . Repair Station Hacks . | . . . . . . Recycling Unit Hacks . | . . . . . . Scanalyzer . | . . . . . . Garrison Access Hacks . | . . . . . . Unauthorized Hacks . | . . . . . . Terminals . | . . . . . . Fabricators . | . . . . . . Repair Stations . | . . . . . . Recycling Units . | . . . . . . Scanalyzers . | . . . . . . Garrison Access . | . . . . . . Data Cores Recovered . | . . . . . . Used . | . . . . . . Hacking Detections 1 | . . . . . 1 Full Trace Events . | . . . . . . Feedback Events . | . . . . . . Feedback Blocked . | . . . . . . Robot Schematics Acquired . | . . . . . . Robots Built . | . . . . . . Authchips . | . . . . . . Time . | . . . . . . Total Robot Build Rating . | . . . . . . Part Schematics Acquired . | . . . . . . Parts Built . | . . . . . . Authchips . | . . . . . . Time . | . . . . . . Total Part Build Rating . | . . . . . . Parts Repaired . | . . . . . . Time . | . . . . . . Parts Recycled . | . . . . . . Recycled Matter . | . . . . . . Retrieved Matter . | . . . . . . Retrieved Components . | . . . . . . Parts Scanalyzed . | . . . . . . Part Schematics Acquired . | . . . . . . Parts Damaged . | . . . . . . Bothacking | -11 -10 -10 -10 -9 -8 ------------ Run | Yrd Mat Min Exi Min Mat Used RIF Installer . | . . . . . . Robots Hacked 1 | . 1 . . . . Non-combat 1 | . 1 . . . . Combat . | . . . . . . Robot Hacks Applied 1 | . 1 . . . . parse_system 1 | . 1 . . . . Relay Couplers Released . | . . . . . . Fabnet Peak Effective % . | . . . . . . Robots Rewired . | . . . . . . Allies Hacked . | . . . . . . Hacks Repelled . | . . . . . . Allies | -11 -10 -10 -10 -9 -8 -------- Run | Yrd Mat Min Exi Min Mat Total Allies 2 | . . 2 . . . Largest Group 2 | . . 2 . . . Highest-Rated Group 42 | . . 42 . . . Highest-Rated Ally 31 | . . 31 . . . Total Orders . | . . . . . . Ally Attacks 2 | . . 2 . . . Total Damage 22 | . . 22 . . . Kills 1 | . . 1 . . . Allies Corrupted . | . . . . . . Allies Melted . | . . . . . . Intel | -11 -10 -10 -10 -9 -8 ------- Run | Yrd Mat Min Exi Min Mat Robot Analysis Total . | . . . . . . Derelict Logs Recovered 1 | . . 1 . . . Drone Launches . | . . . . . . Drone Recoveries . | . . . . . . Exploration | -11 -10 -10 -10 -9 -8 ------------- Run | Yrd Mat Min Exi Min Mat Turns Passed 2264 | 57 233 628 778 52 516 Spaces Moved 1208 | 44 112 388 480 19 165 Core 23 | 14 . . . . 9 Treads 888 | . 9 388 480 11 . Legs 297 | 30 103 . . 8 156 Wheels . | . . . . . . Hover . | . . . . . . Flight . | . . . . . . Fastest Speed 50 | 50 120 160 160 120 120 Average Speed 159 | 97 127 160 160 150 198 Slowest Speed 450 | 120 190 160 160 190 450 Overloaded Moves . | . . . . . . Propulsion Burnouts . | . . . . . . Robots Hopped . | . . . . . . Cave-ins Triggered . | . . . . . . Exploration Rate (%) 36 | 5 30 78 81 4 18 Regions Visited 5 Branch Regions 3 Pre-discovered Areas 1 | . . 1 . . . Known Exits Taken . | . . . . . . Unknown Exits Taken 5 | 1 1 1 1 1 . Scrap Searched 1 | . . 1 . . . Spaces Dug . | . . . . . . Terrain Destroyed 111 | . . . . 29 82 Melee . | . . . . . . Projectile . | . . . . . . AOE 111 | . . . . 29 82 Terrain Rammed . | . . . . . . Walls Destroyed . | . . . . . . Machines Disabled . | . . . . . . Actions | -11 -10 -10 -10 -9 -8 --------- Run | Yrd Mat Min Exi Min Mat Total 1427 | 57 161 397 491 34 287 Wait 46 | . 10 2 . . 34 Move 1203 | 43 111 387 479 18 165 Hop . | . . . . . . Pick Up 40 | 8 6 4 6 1 15 Fast Attach 6 | 2 . . 1 2 1 Attach 14 | 4 2 . . . 8 Detach . | . . . . . . Swap 25 | . 7 . 1 4 13 Drop 24 | . 2 4 4 4 10 Fire 68 | . 22 . . 5 41 Melee 1 | . 1 . . . . Ram . | . . . . . . Kick . | . . . . . . Crush . | . . . . . . Escape Stasis . | . . . . . . Rewire . | . . . . . . Trap . | . . . . . . Miscellaneous . | . . . . . . Route ------- -11/Scrapyard -10/Materials -10/Mines -10/Exiles -9/Mines -8/Materials History --------- Turn | Location | Event 7 | -11/Scrapyard | Discovered new exit (range 15) 58 | -11/Scrapyard | Entered Materials 220 | -10/Materials | Destroyed 8 combat bots 271 | -10/Materials | Discovered new exit (range 9) 291 | -10/Materials | Entered Mines 316 | -10/Mines | Build established: Mutant 614 | -10/Mines | Assembled infested the area 622 | -10/Mines | Found a damaged Exp. Sensor Array with a note attached 626 | -10/Mines | Found Prototype Device 637 | -10/Mines | Learned location of Storage (-7) 724 | -10/Mines | Received a Rocket Launcher from a helpful Derelict 911 | -10/Mines | Deemed a non-threat by the Exiles lab entrance 912 | -10/Mines | Discovered new exit (range 5) 919 | -10/Mines | Entered Exiles 945 | -10/Exiles | Discovered new exit (range 14) 987 | -10/Exiles | Met 8R-AWN 1014 | -10/Exiles | Met EX-HEX 1100 | -10/Exiles | Met EX-DEC 1130 | -10/Exiles | Visited The Gauntlet 1438 | -10/Exiles | Met EX-BIN 1457 | -10/Exiles | Aligned with FarCom system 1459 | -10/Exiles | Given EX-Vault access code 1500 | -10/Exiles | Opened EX-Vault 1510 | -10/Exiles | Found Prototype Storage 1511 | -10/Exiles | Identified Superbattery 1521 | -10/Exiles | Found Prototype Processor 1530 | -10/Exiles | Found Prototype Device 1569 | -10/Exiles | Warned to stay clear of 0b10 Research branches 1697 | -10/Exiles | Stole three prototypes: Superbattery, 0b10 Alert Chip, Cloak of Protection 1697 | -10/Exiles | Entered Mines 1699 | -9/Mines | Discovered new exit (range 14) 1749 | -9/Mines | Entered Materials 1749 | -8/Materials | Evolved 4 slots: Propulsion x2, Utility x2 1749 | -8/Materials | Identified Exp. Sensor Array 1750 | -8/Materials | Identified Cloak of Protection 1761 | -8/Materials | Identified 0b10 Alert Chip 2195 | -8/Materials | Core integrity fell below 50% 2222 | -8/Materials | Lost 5 parts (1p1n1u2w) 2254 | -8/Materials | Core integrity fell below 20% 2265 | -8/Materials | Destroyed by G-47 Trooper with Particle Gun Last Messages --------------- 02241_ Destroyed Unknown Special Weapon. 02241_ K-01 Serf destroyed. 02244_ R-06 Scavenger collects Hvy. Particle Gun. 02245_ U-05 Engineer lays Concrete. 02246_ Imp. Grenade Launcher destroyed. 02247_ K-01 Serf collects debris. 02248_ U-05 Engineer builds a Wall. 02251_ R-06 Scavenger collects Terrain Scanner. 02251_ U-05 Engineer lays Concrete. 02252_ K-01 Serf collects debris. 02252_ U-05 Engineer lays Concrete. 02253_ R-06 Scavenger collects Rocket Launcher. 02255_ Prc. Beam Rifle destroyed. 02258_ Acquired Imp. Grenade Launcher. 02260_ M-13 Machinist destroyed. 02260_ R-06 Scavenger destroyed. 02261_ The unstable cave ceiling collapses. 02263_ Knocked back. 02264_ Atomic Centrifuge disabled. Map ----- +----------------------------------------------------+ | ?????????????????????????????????????????????????? | | ?????????????????????????????????????????????????? | | ?????????????????????????????????????????????????? | | ?????????????????????????????????????????????????? | | ?????????????????????????????????????????????????? | | ?????????????????????????????????????????????????? | | ?????????????????????????????????????????????????? | | ?????????????????????????????????????????????????? | | ?????????????????????????????????????????????????? | | ?????????????????????????????????????????????????? | | ?????????????????????????????????????????????????? | | ?????????????????????????????????????????????????? | | ?????????????????????????????????????????????????? | | ?????????????????????????????????????????????????? | | ?????????????????????????????????????????##+###### | | ??????????????????????????????????? | | ??????????????????????????????????? | | ??????????????????????????????????? | | ?????????????????????##########???? ?######### | | ?????????????????????# =#????# #???####### | | ?????????????????????# """ #????# #???# | | ?????????????????????# """ ###### #???# | | ?????????????????????# """ # ## #???# | | ?????????????????????# # ## #???# | | ?????????????????????#[[ # ## #???# | | ????????????##???????#[ @ ! #" ## #???# | | ??????????### # ???#[ #T ## #???# | | ?????? ### # ! #" ## #???# | | ????? = ! %#+#### ## #???###### | | ????? ] =% %H g% ###+### ########### | | ????? *[ g] [ | | ?????????## [ = "" # | | ??????????# %= ### | | ????????? = " ###+##### ###?## | | ????????? #[ [ ## #????? | | ?????????? # # "T" ##! !#?#### | | ????????????# " " # ###!!!!##?# = | | ????????????# """ ""# #?######??# | | ????????????# """ T"# #?????????# "" | | ??????????? + ?? ""# #?????????# "" | | ????????????# !?? ########?????????# "" | | ????????????# ??? ?????????????????# "" | | ??????????????????############????????????????# | | ??????????????????????????????????????????????# "" | | ??????????????????????????????????????????????# "" | | ??????????????????????????????????????????????# "" | | ??????????????????????????????????????????????# "" | | ??????????????????????????????????????????????? ?? | | ?????????????????????????????????????????????????? | | ?????????????????????????????????????????????????? | +----------------------------------------------------+ Best States ------------- Heat Dissipation 45 Coolant Potential 50 Energy Generation 14 Energy Capacity 1750 Matter Stores 286 Matter Capacity 300 Sight Range 16 Robot Scan Range 20 Terrain Scan Density 10 Cloak Strength 5 Armor Coverage 150 Evasion (%) 55 Recoil Reduction 2 Item Schematics ----------------- None Robot Schematics ------------------ None Fabricated ------------ Nothing Alien Tech Used ----------------- None Achievements -------------- None Challenges ------------ None Game ------ Seed SuspensionGatlingMinigun Manual? 0 Play Time 00:25:10 Cumulative 7.2 hours Start 2024.05.23 @ 16:29:29 End 2024.05.23 @ 16:53:10 Sessions 1 Manual Loads 0 Difficulty Rogue Special Mode None Game No. 12 Rogue 12 Adventurer 0 Explorer 0 Win Type - Total 0 Types 0/0/0/0/0/0/0/0/0 Lore% 12 Gallery% 17 Achievement% 13 Wizard Run 0 Options --------- Layout 1 ASCII 0 Keyboard 0 Movement Mouse Keybinds 0 Fullscreen 2 Font 24/Smallcaps Map View 50x35 Zoom Use 0% Tactical HUD 1 Map Filters NONE Filters NONE Steam 1 RUN: 6ff5d2da-aa04-4c51-926d-0af884463fdb